fUSD/lending_fUSD_20251215
["ID","MTS","AMOUNT","RATE_DAILY","PERIOD"]
[398569982,1765840254936,-150.0,0.00018353,2]
[398569983,1765840254945,-150.0,0.00018353,2]
[398569984,1765840254954,-150.0,0.00018353,2]
[398569985,1765840254964,-600.64,0.00018356,7]
[398569986,1765840254973,-150.0,0.00018387,2]
[398569987,1765840254982,-178.0,0.00018395,2]
[398569988,1765840254994,-150.0,0.00018402,2]
[398569989,1765840255004,-254.90140067,0.00018432,2]
[398569990,1765840255013,-156.17,0.00018463,2]
[398569991,1765840255023,-322.6107,0.00018476,2]
[398569992,1765840255033,-2588.0,0.00018478,2]
[398569993,1765840255043,-663.93287602,0.00018478,2]
[398569994,1765840255052,-1961.0,0.00018486,2]
[398569995,1765840255063,-883.46,0.00018486,2]
[398569996,1765840255072,-150.0,0.00018487,2]
[398569997,1765840255082,-178.0,0.00018497,2]
[398569998,1765840255092,-2000.0,0.000185,2]
[398569999,1765840255102,-150.0,0.00018512,2]
[398570000,1765840255111,-150.0,0.00018512,2]
[398570001,1765840255121,-240.05401799,0.00018522,2]
[398570002,1765840255130,-150.0,0.00018548,2]
[398570003,1765840255139,-500.0,0.00018555,2]
[398570004,1765840255150,-150.0,0.00018564,2]
[398570005,1765840255159,-150.0,0.00018587,2]
[398570006,1765840255169,-13125.99980285,0.00018614,2]
[398570007,1765840255178,-8449.24472907,0.00018615,2]
[398570008,1765840255187,-1963.38608593,0.00018623,2]
[398570009,1765840255197,-600.64,0.0001863,8]
[398570010,1765840255206,-150.0,0.00018687,2]
[398570011,1765840255215,-150.0,0.00018694,2]
[398570012,1765840255225,-178.0,0.00018724,2]
[398570013,1765840255234,-150.0,0.00018749,2]
[398570014,1765840255243,-883.57,0.0001876,2]
[398570015,1765840255252,-1000.0,0.0001876,2]
[398570016,1765840255261,-150.0,0.00018775,2]
[398570017,1765840255271,-262.0,0.0001878,2]
[398570018,1765840255280,-150.0,0.00018786,2]
[398570019,1765840255290,-587.0,0.00018819,2]
[398570020,1765840255299,-587.0,0.00018819,2]
[398570021,1765840255308,-150.0,0.0001884,2]
[398570022,1765840255317,-150.0,0.00018886,2]
[398570023,1765840255327,-1600.0,0.00018891,2]
[398570024,1765840255335,-300.0,0.00018899,2]
[398570025,1765840255345,-1057.83285571,0.000189,2]
[398570026,1765840255354,-1057.83285571,0.000189,2]
[398570027,1765840255364,-1057.83285571,0.000189,2]
[398570028,1765840255373,-1057.83285571,0.000189,2]
[398570029,1765840255383,-1057.83285571,0.000189,2]
[398570030,1765840255392,-1057.83285571,0.000189,2]
[398570031,1765840255401,-1057.83285571,0.000189,2]
[398570032,1765840255411,-1057.83285571,0.000189,2]
[398570033,1765840255420,-1057.83285571,0.000189,2]
[398570034,1765840255430,-1057.83285571,0.000189,2]
[398570035,1765840255439,-1057.83285571,0.000189,2]
[398570036,1765840255448,-1057.83285571,0.000189,2]
[398570037,1765840255458,-1057.83285571,0.000189,2]
[398570038,1765840255468,-1057.83285571,0.000189,2]
[398570039,1765840255478,-1057.83285571,0.000189,2]
[398570040,1765840255488,-1057.83285571,0.000189,2]
[398570041,1765840255498,-1057.83285571,0.000189,2]
[398570042,1765840255507,-1057.83285571,0.000189,2]
[398570043,1765840255516,-1057.83285571,0.000189,2]
[398570044,1765840255526,-1057.83,0.000189,2]
[398570045,1765840255536,-2468.27666333,0.000189,2]
[398570046,1765840255546,-2468.27666333,0.000189,2]
[398570047,1765840255555,-2468.27666333,0.000189,2]
[398570048,1765840255564,-2468.27666333,0.000189,2]
[398570049,1765840255574,-2468.27666333,0.000189,2]
[398570050,1765840255584,-2468.27666333,0.000189,2]
[398570051,1765840255594,-2468.27666333,0.000189,2]
[398570052,1765840255603,-2468.27666333,0.000189,2]
[398570053,1765840255612,-2468.27666333,0.000189,2]
[398570054,1765840255622,-2468.27666333,0.000189,2]
[398570055,1765840255632,-2468.27666333,0.000189,2]
[398570056,1765840255641,-2468.27666333,0.000189,2]
[398570057,1765840255651,-2468.27666333,0.000189,2]
[398570058,1765840255664,-2468.27666333,0.000189,2]
[398570059,1765840255675,-2468.27666333,0.000189,2]
[398570060,1765840255686,-2468.27666333,0.000189,2]
[398570061,1765840255696,-2468.27666333,0.000189,2]
[398570062,1765840255706,-2468.27666333,0.000189,2]
[398570063,1765840255716,-2468.27666333,0.000189,2]
[398570064,1765840255726,-2468.27,0.000189,2]
[398570065,1765840255735,-215.35559056,0.000189,2]
[398570066,1765840255744,-215.35559056,0.000189,2]
[398570067,1765840255754,-215.35559056,0.000189,2]
[398570068,1765840255763,-215.35559056,0.000189,2]
[398570069,1765840255772,-215.35559056,0.000189,2]
[398570070,1765840255782,-215.35559056,0.000189,2]
[398570071,1765840255791,-215.35559056,0.000189,2]
[398570072,1765840255801,-215.35559056,0.000189,2]
[398570073,1765840255810,-215.35559056,0.000189,2]
[398570074,1765840255820,-215.35559056,0.000189,2]
[398570075,1765840255830,-215.35559056,0.000189,2]
[398570076,1765840255840,-215.35559056,0.000189,2]
[398570077,1765840255850,-215.35559056,0.000189,2]
[398570078,1765840255860,-215.35559056,0.000189,2]
[398570079,1765840255870,-215.35559056,0.000189,2]
[398570080,1765840255879,-215.35559056,0.000189,2]
[398570081,1765840255889,-215.35559056,0.000189,2]
[398570082,1765840255898,-215.35559056,0.000189,2]
[398570083,1765840255907,-215.35559056,0.000189,2]
[398570084,1765840255918,-215.35,0.000189,2]
[398570085,1765840255928,-502.49637797,0.000189,2]
[398570086,1765840255937,-502.49637797,0.000189,2]
[398570087,1765840255946,-502.49637797,0.000189,2]
[398570088,1765840255956,-502.49637797,0.000189,2]
[398570089,1765840255965,-502.49637797,0.000189,2]
[398570090,1765840255974,-502.49637797,0.000189,2]
[398570091,1765840255984,-502.49637797,0.000189,2]
[398570092,1765840255996,-502.49637797,0.000189,2]
[398570093,1765840256006,-502.49637797,0.000189,2]
[398570094,1765840256016,-502.49637797,0.000189,2]
[398570095,1765840256026,-502.49637797,0.000189,2]
[398570096,1765840256036,-502.49637797,0.000189,2]
[398570097,1765840256047,-502.49637797,0.000189,2]
[398570098,1765840256058,-502.49637797,0.000189,2]
[398570099,1765840256069,-502.49637797,0.000189,2]
[398570100,1765840256079,-502.49637797,0.000189,2]
[398570101,1765840256090,-502.49637797,0.000189,2]
[398570102,1765840256100,-502.49637797,0.000189,2]
[398570103,1765840256112,-502.49637797,0.000189,2]
[398570104,1765840256123,-502.49,0.000189,2]
[398570105,1765840256137,-429.78174114,0.000189,2]
[398570106,1765840256147,-429.78174114,0.000189,2]
[398570107,1765840256158,-429.78174114,0.000189,2]
[398570108,1765840256168,-429.78174114,0.000189,2]
[398570109,1765840256177,-429.78174114,0.000189,2]
[398570110,1765840256187,-429.78174114,0.000189,2]
[398570111,1765840256196,-429.78174114,0.000189,2]
[398570112,1765840256206,-429.78174114,0.000189,2]
[398570113,1765840256215,-429.78174114,0.000189,2]
[398570114,1765840256225,-429.78174114,0.000189,2]
[398570115,1765840256234,-429.78174114,0.000189,2]
[398570116,1765840256244,-429.78174114,0.000189,2]
[398570117,1765840256254,-429.78174114,0.000189,2]
[398570118,1765840256264,-429.78174114,0.000189,2]
[398570119,1765840256273,-429.78174114,0.000189,2]
[398570120,1765840256283,-429.78174114,0.000189,2]
[398570121,1765840256292,-429.78174114,0.000189,2]
[398570122,1765840256302,-429.78174114,0.000189,2]
[398570123,1765840256312,-429.78174114,0.000189,2]
[398570124,1765840256322,-429.78,0.000189,2]
[398570125,1765840256332,-1002.82406267,0.000189,2]
[398570126,1765840256342,-1002.82406267,0.000189,2]
[398570127,1765840256351,-1002.82406267,0.000189,2]
[398570128,1765840256361,-1002.82406267,0.000189,2]
[398570129,1765840256378,-1002.82406267,0.000189,2]
[398570130,1765840256388,-1002.82406267,0.000189,2]
[398570131,1765840256590,-1002.82406267,0.000189,2]
[398570132,1765840256600,-1002.82406267,0.000189,2]
[398570133,1765840256610,-1002.82406267,0.000189,2]
[398570134,1765840256619,-1002.82406267,0.000189,2]
[398570135,1765840256632,-1002.82406267,0.000189,2]
[398570136,1765840256641,-1002.82406267,0.000189,2]
[398570137,1765840256651,-1002.82406267,0.000189,2]
[398570138,1765840256660,-1002.82406267,0.000189,2]
[398570139,1765840256670,-1002.82406267,0.000189,2]
[398570140,1765840256679,-1002.82406267,0.000189,2]
[398570141,1765840256689,-1002.82406267,0.000189,2]
[398570142,1765840256698,-1002.82406267,0.000189,2]
[398570143,1765840256707,-1002.82406267,0.000189,2]
[398570144,1765840256717,-1002.82,0.000189,2]
[398570145,1765840256726,-13125.99980285,0.000189,2]
[398570146,1765840256735,-240.05401799,0.000189,2]
[398570147,1765840256744,-528.72689552,0.000189,2]
[398570148,1765840256753,-294.4601649,0.000189,2]
[398570149,1765840256763,-8449.24472907,0.000189,2]
[398570150,1765840256772,-600.64,0.00018904,9]
[398570151,1765840256782,-150.0,0.00018904,2]
[398570152,1765840256793,-434.67,0.00018904,2]
[398570153,1765840256803,-1269.87,0.00018904,2]
[398570154,1765840256812,-3618.40128437,0.00018944,2]
[398570155,1765840256822,-1000.0,0.00018959,2]
[398570156,1765840256831,-524.82223208,0.0001897,2]
[398570157,1765840256841,-500.0,0.0001897,2]
[398570158,1765840256851,-500.0,0.0001897,2]
[398570159,1765840256860,-500.0,0.00018973,2]
[398570160,1765840256870,-500.0,0.00018973,2]
[398570161,1765840256879,-219.13164982,0.00018973,2]
[398570162,1765840256889,-500.0,0.00018973,2]
[398570163,1765840256898,-500.0,0.00018973,2]
[398570164,1765840256907,-500.0,0.00018973,2]
[398570165,1765840256917,-500.0,0.00018973,2]
[398570166,1765840256926,-500.0,0.00018973,2]
[398570167,1765840256936,-500.0,0.00018973,2]
[398570168,1765840256945,-500.2027477,0.00018973,2]
[398570169,1765840256954,-500.0,0.00018973,2]
[398570170,1765840256964,-500.0,0.00018973,2]
[398570171,1765840256973,-500.0,0.00018973,2]
[398570172,1765840256983,-500.0,0.00018973,2]
[398570173,1765840256995,-500.0,0.00018973,2]
[398570174,1765840257004,-500.0,0.00018973,2]
[398570175,1765840257013,-500.0,0.00018973,2]
[398570176,1765840257022,-500.0,0.00018973,2]
[398570177,1765840257033,-500.0,0.00018973,2]
[398570178,1765840257043,-500.0,0.00018973,2]
[398570179,1765840257052,-500.0,0.00018973,2]
[398570180,1765840257063,-500.0,0.00018973,2]
[398570181,1765840257072,-500.0,0.00018973,2]
[398570182,1765840257081,-176.75702751,0.00018973,2]
[398570183,1765840257091,-500.0,0.00018973,2]
[398570184,1765840257100,-500.0,0.00018973,2]
[398570185,1765840257110,-500.0,0.00018973,2]
[398570186,1765840257119,-500.0,0.00018973,2]
[398570187,1765840257128,-500.0,0.00018973,2]
[398570188,1765840257138,-500.0,0.00018973,2]
[398570189,1765840257147,-500.0,0.00018973,2]
[398570190,1765840257156,-500.0,0.00018973,2]
[398570191,1765840257166,-500.0,0.00018973,2]
[398570192,1765840257175,-500.0,0.00018973,2]
[398570193,1765840257184,-500.0,0.00018973,2]
[398570194,1765840257194,-500.0,0.00018973,2]
[398570195,1765840257204,-500.0,0.00018973,2]
[398570196,1765840257213,-500.0,0.00018973,2]
[398570197,1765840257222,-500.0,0.00018973,2]
[398570198,1765840257231,-500.0,0.00018973,2]
[398570199,1765840257240,-199.14559614,0.00018973,2]
[398570200,1765840257250,-500.0,0.00018973,2]
[398570201,1765840257259,-500.0,0.00018973,2]
[398570202,1765840257268,-500.0,0.00018973,2]
[398570203,1765840257277,-500.0,0.00018973,2]
[398570204,1765840257287,-500.0,0.00018973,2]
[398570205,1765840257297,-500.0,0.00018973,2]
[398570206,1765840257307,-150.0,0.00018986,2]
[398570207,1765840257316,-150.0,0.00018986,2]
[398570208,1765840257326,-150.0,0.00018986,2]
[398570209,1765840257335,-150.00000001,0.00018986,2]
[398570210,1765840257345,-150.0,0.00018986,2]
[398570211,1765840257354,-152.18264083,0.00018986,2]
[398570212,1765840257364,-150.0,0.00018986,2]
[398570213,1765840257373,-150.0,0.00018986,2]
[398570214,1765840257384,-150.0,0.00018986,2]
[398570215,1765840257393,-219.45685006,0.0001899,2]
[398570216,1765840257402,-219.45685006,0.0001899,2]
[398570217,1765840257411,-262.0,0.00018997,2]
[398570218,1765840257421,-470.10236541,0.00018999,2]
[398570219,1765840257430,-300.0,0.00018999,2]
[398570220,1765840257439,-300.0,0.00018999,2]
[398570221,1765840257448,-2000.0,0.00019,2]
[398570222,1765840257458,-6134.18120636,0.00019,2]
[398570223,1765840257468,-463247.77499252,0.00019,2]
[398570224,1765840257477,-654920.50105578,0.00019,2]
[398570225,1765840257486,-165.0,0.00019,3]
[398570226,1765840257495,-167.25,0.00019,3]
[398570227,1765840257504,-160936.08016185,0.00019,2]
[398570228,1765840257514,-248536.01568782,0.00019,2]
[398570229,1765840257523,-1002.24545635,0.00019,2]
[398570230,1765840257532,-74765.5532472,0.00019,2]
[398570231,1765840257541,-148779.04638567,0.00019,2]
[398570232,1765840259902,-431.025,0.00019,2]
[398570233,1765840259914,-1911.76033256,0.00019,2]
[398570234,1765840259925,-9636.31,0.00019,2]
[398570235,1765840260043,-159.525935,0.00016438,2]
[398570236,1765840260053,-151.0,0.00016438,2]
[398570237,1765840260063,-159.525935,0.00016438,2]
[398570238,1765840260074,-151.0,0.00016438,2]
[398570239,1765840260083,-159.525935,0.00016438,2]
[398570240,1765840260093,-151.0,0.00016438,2]
[398570241,1765840260102,-159.525935,0.00016438,2]
[398570242,1765840260111,-159.525935,0.00016438,2]
[398570243,1765840260121,-159.525935,0.00016438,2]
[398570244,1765840260131,-159.525938,0.00016438,2]
[398570245,1765840260140,-563.0,0.00016916,2]
[398570246,1765840260149,-15728.19562906,0.00019,2]
[398570247,1765840260160,-43468.6253791,0.00019,2]
[398570248,1765840260176,-553.85569524,0.00019,2]
[398570249,1765840260212,-4550.92033776,0.00019,2]
[398570250,1765840261123,-151.0,0.00016438,2]
[398570251,1765840261133,-633.42992,0.00019,2]
[398570252,1765840261145,-5103.0,0.00019,2]
[398570253,1765840261156,-47939.36660591,0.00019,2]
[398570258,1765840342116,235.7645,0.00015638,2]
[398570260,1765840372527,281.4445,0.00015638,2]
[398570261,1765840398352,322.73,0.00015114,2]
[398570264,1765841113974,-300.0,0.00015721,2]
[398570265,1765841113996,-1200.0,0.00015721,2]
[398570266,1765841114019,-235.29370534,0.00015722,2]
[398570267,1765841114508,-2000.0,0.00015722,2]
[398570268,1765841114529,-1000.0,0.00015722,2]
[398570269,1765841114550,-1000.0,0.00015722,2]
[398570270,1765841114573,-689.451,0.00015722,2]
[398570271,1765841114597,-75.25529466,0.00015722,2]
[398570272,1765841123295,25380.50231923,0.0002,30]
[398570279,1765841317288,1232.967164,0.00015,2]
[398570319,1765841433583,-924.74470534,0.00015722,2]
[398570320,1765841433592,-593.42879808,0.00015749,3]
[398570321,1765841433603,-405.57120192,0.00015749,3]
[398570322,1765841433613,-352.85296963,0.00015909,2]
[398570323,1765841433622,-1200.0,0.00015999,2]
[398570324,1765841433631,-5571.38598384,0.00016,4]
[398570325,1765841433646,-3566.54930225,0.00016,4]
[398570326,1765841433657,-7283.6008687,0.00016,4]
[398570343,1765841438252,-71477.87772248,0.00016,4]
[398570348,1765841438355,-779.24362248,0.00016,4]
[398570349,1765841438366,-121.26318226,0.00016,4]
[398570350,1765841438376,-200.0,0.00016009,2]
[398570351,1765841438385,-695.12,0.00016072,2]
[398570352,1765841438395,-500.0,0.00016173,2]
[398570353,1765841438405,-500.0,0.00016173,2]
[398570354,1765841438414,-500.0,0.00016173,2]
[398570355,1765841438423,-113.59442945,0.00016173,2]
[398570466,1765841440203,-246.39698065,0.00016173,2]
[398570467,1765841440212,-500.0,0.00016173,2]
[398570468,1765841440221,-380.54079147,0.00016173,2]
[398570469,1765841440231,-176.5537774,0.00016173,2]
[398570470,1765841440240,-500.0,0.00016173,2]
[398570471,1765841440249,-165.42455065,0.00016173,2]
[398570472,1765841440258,-383.02563398,0.00016173,2]
[398570473,1765841440450,-116.97436602,0.00016173,2]
[398570474,1765841440459,-329.06448255,0.00016173,2]
[398570475,1765841440469,-170.93551745,0.00016173,2]
[398570476,1765841440478,-161.42104642,0.00016173,2]
[398570477,1765841440487,-365.94105432,0.00016173,2]
[398570659,1765841443381,-134.05894568,0.00016173,2]
[398570660,1765841443391,-501.40165484,0.00016173,2]
[398570661,1765841443400,-500.0,0.00016173,2]
[398570662,1765841443409,-500.0,0.00016173,2]
[398570663,1765841443419,-169.17840548,0.00016173,2]
[398570664,1765841443433,-500.26118235,0.00016173,2]
[398570665,1765841443442,-500.0,0.00016173,2]
[398570666,1765841443452,-500.0,0.00016173,2]
[398570667,1765841443461,-500.0,0.00016173,2]
[398570668,1765841443471,-500.0,0.00016173,2]
[398570669,1765841443480,-500.98827769,0.00016173,2]
[398570670,1765841443489,-500.0,0.00016173,2]
[398570671,1765841443498,-500.0,0.00016173,2]
[398570672,1765841443509,-500.0,0.00016173,2]
[398570673,1765841443518,-544.96479342,0.00016173,2]
[398570674,1765841443528,-500.82958274,0.00016173,2]
[398570675,1765841443537,-500.0,0.00016173,2]
[398570676,1765841443547,-500.34016272,0.00016173,2]
[398570677,1765841443556,-500.0,0.00016173,2]
[398570678,1765841443566,-500.35110535,0.00016173,2]
[398570679,1765841443575,-5000.00933582,0.000162,5]
[398570680,1765841443584,-1316.38,0.00016242,2]
[398570681,1765841443593,-250.0,0.00016242,2]
[398570682,1765841443603,-178.0,0.00016259,2]
[398570683,1765841443612,-300.0,0.00016329,2]
[398570684,1765841443621,-2588.0,0.00016329,2]
[398570685,1765841443632,-1000.0,0.00016334,2]
[398570686,1765841443642,-10000.0,0.00016338,2]
[398570687,1765841443651,-178.0,0.00016422,2]
[398570688,1765841443662,-553.64373807,0.00016428,2]
[398570690,1765841443671,-386.00822049,0.00016437,2]
[398570692,1765841443680,-152.55,0.00016438,2]
[398570693,1765841443690,-178.0,0.00016492,2]
[398570694,1765841443699,-1367.32,0.00016509,2]
[398570695,1765841443708,-783.78395927,0.00016721,2]
[398570696,1765841443717,-335.75779875,0.00016721,2]
[398570697,1765841443734,-500.0,0.00016721,2]
[398570698,1765841443747,-500.0,0.00016721,2]
[398570701,1765841443757,-1000.0,0.00016721,2]
[398570702,1765841443766,-1000.0,0.00016721,2]
[398570703,1765841443776,-503.38309233,0.00016721,2]
[398570704,1765841443785,-500.0,0.00016721,2]
[398570705,1765841443795,-1000.0,0.00016721,2]
[398570706,1765841443805,-606.00059495,0.00016721,2]
[398570707,1765841443818,-178.0,0.00016722,2]
[398570708,1765841443828,-178.0,0.0001673,2]
[398570709,1765841443837,-178.0,0.00016734,2]
[398570710,1765841443847,-500.0,0.00016751,2]
[398570711,1765841443857,-572.24287552,0.00016751,2]
[398570712,1765841443866,-500.0,0.00016751,2]
[398570713,1765841443875,-500.0,0.00016751,2]
[398570714,1765841443885,-500.0,0.00016751,2]
[398570715,1765841443895,-500.0,0.00016751,2]
[398570716,1765841443905,-500.0,0.00016751,2]
[398570717,1765841443915,-500.0,0.00016751,2]
[398570718,1765841443925,-500.0,0.00016751,2]
[398570719,1765841443935,-500.0,0.00016751,2]
[398570720,1765841443946,-500.0,0.00016751,2]
[398570721,1765841443956,-500.0,0.00016751,2]
[398570722,1765841443965,-500.0,0.00016751,2]
[398570723,1765841443975,-500.0,0.00016751,2]
[398570724,1765841443985,-500.0,0.00016899,2]
[398570725,1765841443995,-500.0,0.00016899,3]
[398570726,1765841444005,-500.0,0.00016899,4]
[398570727,1765841444015,-154.8367542,0.000169,2]
[398570728,1765841444024,-574.12855637,0.00016976,2]
[398570729,1765841444034,-500.0,0.00016986,2]
[398570730,1765841444045,-500.0,0.00016999,5]
[398570731,1765841444054,-500.0,0.00016999,6]
[398570732,1765841444063,-500.0,0.00016999,7]
[398570733,1765841444074,-150.0,0.00016999,2]
[398570734,1765841444083,-500.0,0.00016999,2]
[398570735,1765841444093,-400.00936077,0.00016999,2]
[398570736,1765841444103,-258.28880459,0.00016999,2]
[398570737,1765841444112,-13384.0,0.00017,2]
[398570738,1765841444122,-1231428.28279844,0.00017,2]
[398570756,1765841447503,-252.73258728,0.00017,2]
[398570757,1765841447515,-607.79607979,0.00017,2]
[398570758,1765841447525,-87416.50358853,0.00017,2]
[398570759,1765841447538,-19480.008485,0.00017,2]
[398570760,1765841447629,-866.07521,0.00017,2]
[398570761,1765841447640,-25118.62036658,0.00017,2]
[398570762,1765841675774,708.1,0.00013699,2]
[398570763,1765842004541,168.26,0.00012568,2]
[398570764,1765842047934,156.75,0.0001571,2]
[398570779,1765842313906,166.66,0.00015461,2]
[398570785,1765842631364,-166.66,0.00015787,2]
[398570787,1765842631375,-166.66,0.00016112,2]
[398570788,1765842631384,-200.0,0.00016135,2]
[398570789,1765842631395,-300.0,0.00016172,2]
[398570790,1765842631404,-48.12514859,0.00016172,2]
[398570791,1765842631415,-251.87485141,0.00016172,2]
[398570792,1765842631425,-1200.0,0.00016172,2]
[398570793,1765842631435,-151.64,0.00016172,2]
[398570794,1765842631445,-151.84,0.00016173,2]
[398570795,1765842631454,-151.35,0.00016173,2]
[398570796,1765842631463,-575.23573332,0.00016173,2]
[398570797,1765842631473,-498.60294116,0.00016173,2]
[398570798,1765842631482,-500.0,0.00016173,2]
[398570799,1765842631491,-500.0,0.00016173,2]
[398570800,1765842631501,-501.51044727,0.00016173,2]
[398570801,1765842631510,-500.0,0.00016173,2]
[398570802,1765842631519,-500.0,0.00016173,2]
[398570803,1765842631528,-500.0,0.00016173,2]
[398570804,1765842631537,-500.0,0.00016173,2]
[398570805,1765842631547,-500.0,0.00016173,2]
[398570806,1765842631556,-547.0943968,0.00016173,2]
[398570807,1765842631565,-500.0,0.00016173,2]
[398570808,1765842631574,-500.0,0.00016173,2]
[398570809,1765842631584,-500.0,0.00016173,2]
[398570810,1765842631593,-500.0,0.00016173,2]
[398570811,1765842631602,-161.94010218,0.00016173,2]
[398570812,1765842631611,-500.0,0.00016173,2]
[398570813,1765842631621,-500.05258678,0.00016173,2]
[398570814,1765842631630,-500.0,0.00016173,2]
[398570815,1765842631640,-500.0,0.00016173,2]
[398570816,1765842631649,-500.0,0.00016173,2]
[398570817,1765842631658,-179.38565729,0.00016173,2]
[398570818,1765842631667,-500.0,0.00016173,2]
[398570819,1765842631677,-500.0,0.00016173,2]
[398570820,1765842631687,-165.6872714,0.00016173,2]
[398570821,1765842631695,-500.0,0.00016173,2]
[398570823,1765842631704,-168.48732497,0.00016173,2]
[398570825,1765842631713,-500.0,0.00016173,2]
[398570827,1765842631721,-500.0,0.00016173,2]
[398570829,1765842631730,-421.01630901,0.00016173,2]
[398570832,1765842631741,-141.43798549,0.00016173,2]
[398570834,1765842631751,-434.47298098,0.00016173,2]
[398570837,1765842631761,-65.7913504,0.00016173,2]
[398570839,1765842631770,-500.0,0.00016173,2]
[398570841,1765842631779,-482.91092761,0.00016173,2]
[398570843,1765842631788,-23.93448052,0.00016173,2]
[398570846,1765842631810,-476.4698319,0.00016173,2]
[398570848,1765842631819,-276.27174757,0.00016173,2]
[398570850,1765842631828,-500.0,0.00016173,2]
[398570852,1765842631837,-201.4977632,0.00016173,2]
[398570854,1765842631846,-166.66,0.00016181,2]
[398570856,1765842631855,-1448.10065733,0.00016349,2]
[398570858,1765842631867,-151.89934267,0.00016349,2]
[398570860,1765842631876,-300.0,0.00016428,2]
[398570862,1765842631885,-166.66,0.00016438,2]
[398570864,1765842631894,-5710.15150052,0.00016438,2]
[398570865,1765842631907,-1919.27849948,0.00016438,2]
[398570866,1765842631916,-432.09150052,0.00016658,2]
[398570867,1765842631927,-67.90849948,0.00016658,2]
[398570869,1765842631936,-168.35,0.00016712,2]
[398570871,1765842631945,-166.66,0.00016715,2]
[398570873,1765842631955,-274.44474199,0.00016721,2]
[398570879,1765842631994,-225.55525801,0.00016721,2]
[398570880,1765842632003,-299.60620764,0.00016721,2]
[398570883,1765842632015,-700.39379236,0.00016721,2]
[398570885,1765842632025,-312.96483151,0.00016721,2]
[398570981,1765842637463,-187.03516849,0.00016721,2]
[398570982,1765842637474,-236.46745736,0.00016721,2]
[398570983,1765842637486,-763.53254264,0.00016721,2]
[398570984,1765842637495,-1000.0,0.00016721,2]
[398570985,1765842637505,-1000.0,0.00016721,2]
[398570986,1765842637515,-500.69569811,0.00016721,2]
[398570987,1765842637524,-500.0,0.00016721,2]
[398570988,1765842637534,-500.6273257,0.00016721,2]
[398570989,1765842637544,-500.0,0.00016721,2]
[398570990,1765842637554,-500.0,0.00016721,2]
[398570991,1765842637564,-500.0,0.00016721,2]
[398570992,1765842637573,-1000.0,0.00016721,2]
[398570993,1765842637583,-500.60353783,0.00016721,2]
[398570994,1765842637594,-376.6677597,0.00016721,2]
[398570995,1765842637603,-1000.0,0.00016721,2]
[398570996,1765842637614,-1072.286,0.00016721,2]
[398570997,1765842637625,-166.66,0.00016763,2]
[398570998,1765842637635,-300.70127104,0.00016886,2]
[398570999,1765842637644,-553.64373807,0.00016886,2]
[398571000,1765842637654,-216.68,0.00016892,2]
[398571001,1765842637664,-180.80216321,0.00016892,2]
[398571003,1765842637675,-630.00655254,0.00016892,2]
[398571005,1765842637684,-1075.88598408,0.00016892,2]
[398571006,1765842637694,-500.0,0.00016892,2]
[398571007,1765842637703,-1075.88598408,0.00016892,2]
[398571008,1765842637712,-1075.88598408,0.00016892,2]
[398571009,1765842637722,-285.80476395,0.00016892,2]
[398571010,1765842637732,-1075.88598408,0.00016892,2]
[398571011,1765842637741,-1075.88598408,0.00016892,2]
[398571012,1765842637751,-1075.88598408,0.00016892,2]
[398571013,1765842637760,-1075.88598408,0.00016892,2]
[398571015,1765842637770,-1075.88598408,0.00016892,2]
[398571017,1765842637780,-1075.88598408,0.00016892,2]
[398571018,1765842637791,-1075.88598408,0.00016892,2]